Cogmind - Beta 13 @@@ ROGUE MODE // 2024.05.10 @ 15:44:04 Player: P9H Result: Destroyed by D-53 Grenadier with Mini Grenade Launcher Performance ------------- Evolutions (1) 500 Regions Visited (3) 600 Robots Destroyed (22) 110 Value Destroyed (402) 402 Prototype IDs (1) 20 Alien Tech Used (0) 0 Bonus (-18) -18 TOTAL SCORE: 1614 Bonus ------- Friendly Fire -18 Cogmind --------- Core Integrity 0/400 Matter 224/300 Energy 67/100 System Corruption 9% Temperature Cool (0) Movement Rolling (110) Ox2 Location -9/Mines Parts ------- > --- POWER (2) -------- (None) > --- PROPULSION (2) --- Wheel > --- UTILITY (3) ------ Large Storage Unit > --- WEAPON (2) ------- Shotgun Shotgun > --- INVENTORY (15) --- Wheel Wheel Large Matter Pod (128) Advanced Beam Cannon Advanced Beam Cannon Advanced Beam Cannon Advanced Beam Cannon Assault Rifle Peak State ------------ > --- POWER ------------ Ion Engine Light Nuclear Core > --- PROPULSION ------- Compact Wheel Compact Wheel > --- UTILITY ---------- Improved Heat Sink Large Storage Unit Structural Scanner > --- WEAPON ----------- Advanced Beam Cannon Assault Rifle > --- INVENTORY -------- Wheel Wheel Wheel Compact Wheel Small Matter Pod Advanced Beam Cannon Advanced Beam Cannon Advanced Beam Cannon Shotgun Shotgun Shotgun Shotgun Grenade Launcher [Rating: 17] Favorites ----------- Power Ion Engine Engine Ion Engine Power Core Light Nuclear Core Propulsion Compact Wheel Wheel Compact Wheel Utility Large Storage Unit Device Structural Scanner Storage Large Storage Unit Weapon Assault Rifle Energy Gun EM Pulse Gun Energy Cannon Advanced Beam Cannon Ballistic Gun Assault Rifle Launcher Grenade Launcher Build | -11 -10 -9 -9 ------- Run | Yrd Mat Mat Min Slots Evolved 2 | . . 2 . Power 1 | . . 1 . Propulsion . | . . . . Utility 1 | . . 1 . Weapon . | . . . . Parts Attached 30 | 6 13 4 7 Power 3 | 1 1 1 . Engine 2 | 1 . 1 . Core 1 | . 1 . . Reactor . | . . . . Propulsion 4 | 2 . . 2 Treads . | . . . . Leg . | . . . . Wheel 4 | 2 . . 2 Hover . | . . . . Flight . | . . . . Utility 4 | 1 2 1 . Device 2 | . 1 1 . Storage 2 | 1 1 . . Processor . | . . . . Hackware . | . . . . Protection . | . . . . Artifact . | . . . . Weapon 19 | 2 10 2 5 Energy Gun 4 | 1 2 1 . Energy Cannon 2 | . 2 . . Ballistic Gun 11 | 1 5 1 4 Ballistic Cannon . | . . . . Launcher 2 | . 1 . 1 Special Weapon . | . . . . Impact Weapon . | . . . . Slashing Weapon . | . . . . Piercing Weapon . | . . . . Special Melee Weapon . | . . . . Unidentified Prototypes 1 | . 1 . . Parts Lost 11 | . . . 11 Power 2 | . . . 2 Propulsion 3 | . . . 3 Utility 2 | . . . 2 Weapon 4 | . . . 4 Highest Loss Streak 11 | . . . 11 To Critical Strikes . | . . . . Average Slot Usage (%) 94 | . 97 98 73 Engine 9 | . 10 10 5 Core 5 | . 3 11 4 Wheel 24 | . 28 22 14 Device 15 | . 11 21 19 Storage 12 | . 14 11 11 Energy Gun 6 | . 7 3 8 Energy Cannon 4 | . 5 6 . Ballistic Gun 13 | . 14 12 10 Naked Turns . | . . . . Heaviest Build 38 | 14 32 38 37 Greatest Support 32 | 32 32 32 32 Greatest Overweight (x) 8 | . . 1 8 Average Overweight (x) . | . . . 1 Largest Inventory Capacity 15 | 8 15 15 15 Average Capacity 14 | 6 14 15 15 Most Carried 15 | 5 15 15 14 Average Carried 11 | 3 11 14 12 Final Capacity 15 | 8 15 15 15 Final Carried 15 | 4 15 14 8 Class Distribution -------------------- 100% | Mutant Dominant Class ---------------- Mutant | -10/Materials Mutant | -9/Materials Mutant | -9/Mines Resources | -11 -10 -9 -9 ----------- Run | Yrd Mat Mat Min Matter Collected 817 | 191 350 253 23 Remotely . | . . . . Salvage Created 596 | . 327 203 66 Parts 43 | . 27 16 . Haulers Intercepted . | . . . . Recyclers Shooed 1 | . . 1 . Parts Field Recycled . | . . . . Retrieved Matter . | . . . . Parts Self-Destructed . | . . . . Prevented . | . . . . Kills | -11 -10 -9 -9 ------- Run | Yrd Mat Mat Min Combat Hostiles Destroyed 22 | . 7 6 9 Guns 16 | . 4 5 7 Cannons 2 | . 1 1 . AOE 4 | . 2 . 2 Classes Destroyed 7 | . 5 1 1 Worker 5 | . 4 1 . Builder 1 | . 1 . . Operator 1 | . . 1 . Watcher 2 | . 2 . . Swarmer 6 | . 3 3 . Grunt 7 | . 4 3 . Assembled 9 | . . . 9 Best Kill Streak 8 | . 5 5 8 Combat Bots Only 8 | . 3 4 8 Max Kills in Single Turn 2 | . 2 1 2 Gunslinging . | . . . . Exploded 2 | . 1 . 2 Melee . | . . . . Uniques/NPCs Destroyed . | . . . . Combat | -11 -10 -9 -9 -------- Run | Yrd Mat Mat Min Hostile Shots Fired 128 | . 22 23 83 Missed 35 | . 6 5 24 Damage Taken 1458 | 7 170 184 1097 Core 467 | . 62 41 364 Absorbed by Shields . | . . . . Core Remaining (%) 87 | 100 75 . . Volleys Fired 60 | . 23 19 18 Largest 2 | . 2 2 2 Hottest 95 | . 88 88 95 Shots Fired 111 | . 46 38 27 Gun 97 | . 36 35 26 Cannon 10 | . 7 3 . Launcher 4 | . 3 . 1 Special . | . . . . Kinetic 72 | . 30 26 16 Thermal 29 | . 7 12 10 Explosive 4 | . 3 . 1 Electromagnetic 6 | . 6 . . Robot Hit Streak 8 | . 8 6 8 Robot Miss Streak 6 | . 5 6 4 Penetration Max . | . . . . Secondary Targets . | . . . . Shots Hit Robots 70 | . 31 19 20 Core Hits 46 | . 18 9 19 Critical Kills . | . . . . Critical Parts Destroyed . | . . . . Critical Strikes 1 | . . . 1 Burn 1 | . . . 1 Melee Attacks . | . . . . Impact . | . . . . Slashing . | . . . . Piercing . | . . . . Sneak Attacks . | . . . . Combat Hostiles . | . . . . Follow-up Attacks . | . . . . Damage Inflicted 1398 | 14 616 294 474 Guns 945 | . 353 254 338 Cannons 161 | . 121 40 . Explosions 278 | . 142 . 136 Melee . | . . . . Ramming 14 | 14 . . . Kinetic 694 | . 270 196 228 Thermal 329 | . 121 98 110 Explosive 278 | . 142 . 136 Electromagnetic 83 | . 83 . . Impact . | . . . . Slashing . | . . . . Piercing . | . . . . Highest Corruption 9 | . . . 9 Average Corruption 5 | . . . 5 Corruption Purged . | . . . . Corruption Blocked . | . . . . Effects 3 | . . . 3 Matter Fused 1 | . . . 1 Data Loss (minor) 1 | . . . 1 Weapon Failures 1 | . . . 1 Overload Shots . | . . . . Overflow Damage 7 | . . . 7 Projectiles . | . . . . Explosions 7 | . . . 7 Melee . | . . . . Knockbacks . | . . . . Impact . | . . . . Kinetic . | . . . . Secondary . | . . . . Self-Inflicted Damage 46 | 7 . . 39 Shots 1 | . . . 1 Rammed 1 | 1 . . . Targets Rammed 1 | 1 . . . Kicked . | . . . . Crushed . | . . . . Highest Temperature 135 | . 135 48 3 Average Temperature 33 | . 49 11 2 Received Heat Transfer 323 | . 57 66 200 Siege Activations . | . . . . Robots Corrupted . | . . . . Combat Hostiles . | . . . . Parts Fried . | . . . . Impact Corruptions . | . . . . Robots Melted . | . . . . Combat Hostiles . | . . . . Parts Melted . | . . . . Heat Transferred 777 | . 222 222 333 Parts Sabotaged . | . . . . Parts Stolen . | . . . . Parts Stripped . | . . . . Power Chain Reactions . | . . . . Alert | -11 -10 -9 -9 ------- Run | Yrd Mat Mat Min Peak Influence 271 | . 271 206 80 Initial 79 | . . 39 79 Average 74 | . 75 95 54 Maximum Alert Level 1 | . 1 1 . Low Security (%) 88 | 100 84 87 100 Level 1 11 | . 15 12 . Level 2 . | . . . . Level 3 . | . . . . Level 4 . | . . . . Level 5 . | . . . . High Security . | . . . . Max Security . | . . . . Squads Dispatched 3 | . 1 2 . Investigation 1 | . . 1 . Extermination . | . . . . Reinforcement 2 | . 1 1 . Assault . | . . . . Garrison . | . . . . Intercept . | . . . . Searches Triggered . | . . . . Construction Impeded . | . . . . Haulers Reinforced . | . . . . Active Scanning Responses . | . . . . Cargo Convoy Interrupts . | . . . . Stealth | -11 -10 -9 -9 --------- Run | Yrd Mat Mat Min Distress Signals 2 | . . 2 . Communications Jammed . | . . . . Distress Signals . | . . . . Times Spotted 44 | . 13 11 20 Peak Tracking Total 9 | . 3 3 9 Tactical Retreats 1 | . . . 1 Traps | -11 -10 -9 -9 ------- Run | Yrd Mat Mat Min Traps Triggered 1 | . . 1 . Indirectly . | . . . . Trap Hack Attempts . | . . . . Triggered . | . . . . Disarmed . | . . . . Reprogrammed . | . . . . Reused . | . . . . Traps Extracted . | . . . . Installed . | . . . . Triggered . | . . . . Machines | -11 -10 -9 -9 ---------- Run | Yrd Mat Mat Min Machines Disabled 3 | . 2 1 . Max in Single Turn 1 | . 1 1 . Machines Repaired . | . . . . Machines Dismantled . | . . . . Machines Sabotaged . | . . . . Overloaded Fab Kills . | . . . . Hacking | -11 -10 -9 -9 --------- Run | Yrd Mat Mat Min Machines Accessed 2 | . 1 1 . Terminals 2 | . 1 1 . Fabricators . | . . . . Repair Stations . | . . . . Recycling Units . | . . . . Scanalyzers . | . . . . Garrison Access . | . . . . Total Hacks 8 | . 3 5 . Successful 3 | . 1 2 . Failed 5 | . 2 3 . Catastrophic 1 | . 1 . . Database Lockouts . | . . . . Manual . | . . . . Terminals 8 | . 3 5 . Fabricators . | . . . . Repair Stations . | . . . . Recycling Units . | . . . . Scanalyzers . | . . . . Garrison Access . | . . . . Terminal Hacks 3 | . 1 2 . Record 1 | . 1 . . Branch Access Points 1 | . . 1 . Locate Traps 1 | . . 1 . Fabricator Hacks . | . . . . Repair Station Hacks . | . . . . Recycling Unit Hacks . | . . . . Scanalyzer . | . . . . Garrison Access Hacks . | . . . . Unauthorized Hacks . | . . . . Terminals . | . . . . Fabricators . | . . . . Repair Stations . | . . . . Recycling Units . | . . . . Scanalyzers . | . . . . Garrison Access . | . . . . Data Cores Recovered 1 | . . 1 . Used 1 | . . 1 . Hacking Detections 2 | . 1 1 . Full Trace Events 1 | . 1 . . Feedback Events . | . . . . Feedback Blocked . | . . . . Robot Schematics Acquired . | . . . . Robots Built . | . . . . Authchips . | . . . . Time . | . . . . Total Robot Build Rating . | . . . . Part Schematics Acquired . | . . . . Parts Built . | . . . . Authchips . | . . . . Time . | . . . . Total Part Build Rating . | . . . . Parts Repaired . | . . . . Time . | . . . . Parts Recycled . | . . . . Recycled Matter . | . . . . Retrieved Matter . | . . . . Retrieved Components . | . . . . Parts Scanalyzed . | . . . . Part Schematics Acquired . | . . . . Parts Damaged . | . . . . Bothacking | -11 -10 -9 -9 ------------ Run | Yrd Mat Mat Min Used RIF Installer . | . . . . Robots Hacked . | . . . . Non-combat . | . . . . Combat . | . . . . Robot Hacks Applied . | . . . . Relay Couplers Released . | . . . . Fabnet Peak Effective % . | . . . . Robots Rewired . | . . . . Allies Hacked . | . . . . Hacks Repelled . | . . . . Allies | -11 -10 -9 -9 -------- Run | Yrd Mat Mat Min Total Allies . | . . . . Largest Group . | . . . . Highest-Rated Group . | . . . . Highest-Rated Ally . | . . . . Total Orders . | . . . . Ally Attacks . | . . . . Total Damage . | . . . . Kills . | . . . . Allies Corrupted . | . . . . Allies Melted . | . . . . Intel | -11 -10 -9 -9 ------- Run | Yrd Mat Mat Min Robot Analysis Total . | . . . . Derelict Logs Recovered 1 | . . . 1 Drone Launches . | . . . . Drone Recoveries . | . . . . Exploration | -11 -10 -9 -9 ------------- Run | Yrd Mat Mat Min Turns Passed 950 | 50 505 274 121 Spaces Moved 627 | 36 368 169 54 Core 6 | 4 . . 2 Treads . | . . . . Legs . | . . . . Wheels 621 | 32 368 169 52 Hover . | . . . . Flight . | . . . . Fastest Speed 50 | 50 100 100 90 Average Speed 105 | 94 100 114 125 Slowest Speed 450 | 100 100 115 450 Overloaded Moves . | . . . . Propulsion Burnouts . | . . . . Robots Hopped . | . . . . Cave-ins Triggered . | . . . . Exploration Rate (%) 26 | 3 65 19 18 Regions Visited 3 Branch Regions 1 Pre-discovered Areas 1 | . . . 1 Known Exits Taken 1 | . . 1 . Unknown Exits Taken 2 | 1 1 . . Scrap Searched . | . . . . Spaces Dug . | . . . . Terrain Destroyed 18 | . 7 . 11 Melee . | . . . . Projectile . | . . . . AOE 18 | . 7 . 11 Terrain Rammed . | . . . . Walls Destroyed . | . . . . Machines Disabled . | . . . . Actions | -11 -10 -9 -9 --------- Run | Yrd Mat Mat Min Total 800 | 52 457 212 79 Wait 47 | . 31 16 . Move 625 | 36 367 168 54 Hop . | . . . . Pick Up 30 | 10 17 3 . Fast Attach . | . . . . Attach 16 | 6 2 2 6 Detach . | . . . . Swap 14 | . 11 2 1 Drop 8 | . 6 2 . Fire 60 | . 23 19 18 Melee . | . . . . Ram . | . . . . Kick . | . . . . Crush . | . . . . Escape Stasis . | . . . . Rewire . | . . . . Trap . | . . . . Miscellaneous . | . . . . Route ------- -11/Scrapyard -10/Materials -9/Materials (discovered 2 exits: *Min / Sto) -9/Mines History --------- Turn | Location | Event 23 | -11/Scrapyard | Discovered new exit (range 16) 51 | -11/Scrapyard | Entered Materials 314 | -10/Materials | Build established: Mutant 532 | -10/Materials | Discovered new exit (range 11) 556 | -10/Materials | Entered another Materials area 556 | -9/Materials | Evolved 2 slots: Power x1, Utility x1 582 | -9/Materials | Identified exit to Mines 582 | -9/Materials | Identified exit to Storage 830 | -9/Materials | Entered Mines 835 | -9/Mines | Met a Derelict bent on vengeance 873 | -9/Mines | Learned location of Zion (-6) 875 | -9/Mines | Assembled infested the area 880 | -9/Mines | Assisted by a Guerilla fighting off Assembled 920 | -9/Mines | Core integrity fell below 50% 944 | -9/Mines | Core integrity fell below 20% 947 | -9/Mines | Destroyed 8 combat bots 951 | -9/Mines | Destroyed by D-53 Grenadier with Mini Grenade Launcher Last Messages --------------- 00930_ Acquired 12 matter. 00931_ The unstable cave ceiling collapses. 00933_ Imp. Heat Sink destroyed. 00935_ Acquired 9 matter. 00935_ Knocked back. 00936_ Acquired 2 matter. 00938_ The unstable cave ceiling collapses. 00938_ Flexi-carbon Leg crushed. 00943_ Structural Scanner destroyed. 00943_ Com. Wheel destroyed. 00943_ System corrupted by crushing effect (+3). 00943_ System corrupted by crushing effect (+1). 00943_ Knocked back. 00944_ as-96349 destroyed. 00946_ Shotgun destroyed. 00947_ System corrupted: Component data lost. 00947_ as-29565 destroyed. 00949_ as-45996 destroyed. 00949_ as-00802 destroyed. 00951_ The unstable cave ceiling collapses. Map ----- +----------------------------------------------------+ | ???????????????????????????????????????????????? | | ???????????????????????????????????????????????? | | ???????????????????????????????????????????????? | | ??????????? ##??#####??????????????????????????? | | ??????????? ##??#####??????????????????????????? | | ??????????? ?? ??????????????????????????? | | ??????????? ? ??????????????????????????? | | ??????????### # ##??????????????????????????? | | ??????????### ## ##??????????????????????????? | | ??????????## ## ###?????????????????????????? | | ??????????## ###?????????????????????????? | | ??????????## """ ##?##### ??????????????????? | | ??????????## """ ##########?????????????????? | | ??????????### """ ##### #####???????????????? | | ???????????## ### #####??????????????? | | ???????????### ####?? ????????? | | ????????????## ### #????? | | ????????????## ## ## ##????? | | ???########### #### #####????? | | ???########### ########## ###???????? | | ???## ## ######### ###???????? | | ???## !! # ##?????##dd ##????????? | | ???## !! ##????### ###????????? | | ???## ! ##????# # ####????????? | | ???## ! # ##????# #########?????????? | | ???## #######????# @ ########??????????? | | ???###############???# #?????????????????? | | ???#########?????????# #?????????????????? | | ?????????????????????# # #?????????????????? | | ?????????????????????### ##?????????????????? | | ?????????????????????## ##?????????????????? | | ?????????????????????### %% ##?????????????????? | | ?????????????????????####%% ##?????????????????? | | ??????????????###########%a ##?????????????????? | | ??????????????###########%% ##?????????????????? | | ??????????????## ###?????????????????? | | ??????????????## ######## %###?????????????????? | | ??????????????## ######## %##??????????????????? | | ???????????????????????##a ##??????????????????? | | ???????????????????????## %"#??????????????????? | | ??????????????????????? "#??????????????????? | | ??????????????????????? #### ??????????????????? | | ??????????????????????? #####??????????????????? | | ???????????????????????????????????????????????? | | ???????????????????????????????????????????????? | | ???????????????????????????????????????????????? | | ???????????????????????????????????????????????? | | ???????????????????????????????????????????????? | | ???????????????????????????????????????????????? | | ???????????????????????????????????????????????? | +----------------------------------------------------+ Best States ------------- Heat Dissipation 42 Energy Generation 19 Energy Capacity 310 Matter Stores 300 Matter Capacity 300 Sight Range 16 Terrain Scan Density 10 Evasion (%) 40 Item Schematics ----------------- None Robot Schematics ------------------ None Fabricated ------------ Nothing Alien Tech Used ----------------- None Achievements -------------- Dynamic Key Challenges ------------ None Game ------ Seed AuthchipTacticalRipper Manual? 0 Play Time 00:18:37 Cumulative 10.7 hours Start 2024.05.10 @ 14:59:43 End 2024.05.10 @ 15:44:04 Sessions 1 Manual Loads 0 Difficulty Rogue Special Mode None Game No. 23 Rogue 23 Adventurer 0 Explorer 0 Win Type - Total 0 Types 0/0/0/0/0/0/0/0/0 Lore% 4 Gallery% 19 Achievement% 14 Wizard Run 0 Options --------- Layout 1 ASCII 0 Keyboard 0 Movement Mouse Keybinds 0 Fullscreen 2 Font 32/SmallcapsGlow Map View 50x35 Zoom Use 0% Tactical HUD 1 Map Filters NONE Filters NONE Steam 1 RUN: 503e8169-aa7c-4ccc-854a-80c964efa9a8